bitfinex/quotes_SOLUSD_20240811
["timestamp","ask_amount","ask_price","bid_price","bid_amount"]
[1723408754555,0.8231137,145.62,145.53,33.72]
[1723408754556,0.8231137,145.62,145.6,50.5459]
[1723408754871,0.8231137,145.62,145.61,1.37289145]
[1723408755075,0.8231137,145.62,145.61,21.37289145]
[1723408755248,4.8036,145.73,145.61,21.37289145]
[1723408755249,4.8036,145.73,145.64,4.806]
[1723408755451,4.8039,145.72,145.65,45.0]
[1723408755858,11.97481196,145.76,145.67,4.8053]
[1723408756053,0.8231137,145.77,145.68,45.0]
[1723408756252,4.8036,145.73,145.65,49.8059]
[1723408756458,38.523,145.75,145.66,4.8056]
[1723408756773,0.8231137,145.77,145.67,45.0]
[1723408756956,0.8231137,145.77,145.7,12.0108]
[1723408757148,0.8231137,145.77,145.71,45.0]
[1723408757369,0.8231137,145.77,145.7,12.0108]
[1723408757549,0.8231137,145.77,145.71,45.0]
[1723408757949,0.8231137,145.77,145.72,4.8035]
[1723408758150,0.8231137,145.77,145.71,45.0]
[1723408758648,0.8231137,145.77,145.7,45.12549]
[1723408758857,0.8231137,145.77,145.72,12.0093]
[1723408759051,0.8231137,145.77,145.73,45.0]
[1723408759460,0.8231137,145.77,145.71,4.804]
[1723408759762,0.8231137,145.77,145.72,49.8036]
[1723408759965,0.8231137,145.77,145.72,45.0]
[1723408760470,0.8231137,145.77,145.73,4.8032]
[1723408760777,0.8231137,145.77,145.75,4.8026]
[1723408761181,0.8231137,145.77,145.76,45.0]
[1723408761555,0.8231137,145.77,145.75,45.0]
[1723408761774,0.8231137,145.77,145.69,4.8045]
[1723408762047,0.8231137,145.77,145.67,33.72]
[1723408762275,0.8231137,145.77,145.69,12.0112]
[1723408762482,0.8231137,145.77,145.67,33.72]
[1723408762483,4.8028,145.75,145.65,18.3329]
[1723408762660,4.8038,145.72,145.65,18.3329]
[1723408762853,34.5431137,145.77,145.61,16.322]
[1723408762854,0.12549,145.71,145.61,28.3403]
[1723408763060,0.25098,145.71,145.61,12.0183]
[1723408763256,0.12549,145.67,145.58,4.808]
[1723408763468,0.12549,145.67,145.57,12.0215]
[1723408763791,0.25098,145.67,145.57,12.0215]
[1723408764016,0.12549,145.67,145.54,33.72]
[1723408764283,0.12549,145.67,145.51,6.3181]
[1723408764284,0.25098,145.67,145.57,33.72]
[1723408764470,0.12549,145.67,145.56,12.022]
[1723408764670,0.25098,145.67,145.53,33.72]
[1723408764891,25.05638,145.67,145.59,4.8079]
[1723408765062,4.8057,145.66,145.57,4.8084]
[1723408765260,20.0,145.66,145.56,12.0223]
[1723408765476,5.18247,145.65,145.56,12.0223]
[1723408766291,0.12549,145.67,145.57,0.45563551]
[1723408766463,26.78888316,145.75,145.57,0.45563551]
[1723408766464,4.8045,145.7,145.62,4.8069]
[1723408766673,4.8045,145.7,145.59,33.72]
[1723408766674,4.8047,145.69,145.61,24.8071]
[1723408766863,4.8043,145.71,145.62,4.8069]
[1723408767265,4.8047,145.69,145.61,16.825]
[1723408767578,28.6198137,145.77,145.62,45.0]
[1723408768260,28.6198137,145.77,145.58,4.8082]
[1723408768261,4.8057,145.66,145.58,4.8082]
[1723408768469,33.72,145.71,145.6,12.0187]
[1723408768666,53.41475389,145.74,145.6,12.0187]
[1723408768667,20.25098,145.7,145.6,12.0187]
[1723408768888,0.12549,145.69,145.63,4.8066]
[1723408769095,20.0,145.69,145.63,4.8066]
[1723408769257,4.92909,145.73,145.64,4.8062]
[1723408769588,0.12549,145.72,145.64,4.8062]
[1723408769790,0.12549,145.71,145.6,33.72]
[1723408769995,0.12549,145.71,145.61,45.0]
[1723408770207,16.6144137,145.77,145.63,33.72]
[1723408770365,4.803,145.75,145.67,4.8053]
[1723408770566,16.6144137,145.77,145.68,4.805]
[1723408770761,4.8027,145.75,145.66,20.0]
[1723408770991,16.6144137,145.77,145.67,45.0]
[1723408771195,4.8034,145.73,145.67,45.0]
[1723408771403,4.803,145.74,145.67,51.17794044]
[1723408771620,4.8034,145.73,145.67,45.0]
[1723408771915,50.3344137,145.77,145.65,12.0146]
[1723408771916,4.8038,145.72,145.65,12.0146]
[1723408772124,50.3344137,145.77,145.55,26.78661034]
[1723408772125,4.805,145.68,145.61,22.8489]
[1723408772283,0.12549,145.7,145.61,6.0238]
[1723408772490,0.37647,145.7,145.57,45.7413]
[1723408772693,20.0,145.73,145.6,45.7389]
[1723408772894,4.8038,145.72,145.6,33.72]
[1723408773125,16.6144137,145.77,145.63,33.72]
[1723408773325,4.803,145.74,145.67,4.8053]
[1723408773489,4.803,145.74,145.68,1.37200628]
[1723408773686,4.8034,145.73,145.67,45.0]
[1723408773902,4.803,145.75,145.67,49.8053]
[1723408774121,4.803,145.75,145.68,1.37223971]
[1723408774291,0.8231137,145.77,145.67,45.0]
[1723408774490,4.8039,145.72,145.67,45.0]
[1723408774716,33.72,145.72,145.57,33.72]
[1723408775033,4.8046,145.7,145.6,33.72]
[1723408775315,4.8058,145.66,145.57,33.72]
[1723408775510,4.8058,145.66,145.53,33.72]
[1723408775511,0.12549,145.69,145.59,20.8289]
[1723408775689,0.12549,145.69,145.56,18.0457]
[1723408775690,0.12549,145.66,145.56,18.0457]
[1723408775894,0.37647,145.66,145.56,18.0457]
[1723408776110,0.37647,145.66,145.54,16.021]
[1723408776111,0.12549,145.65,145.54,20.8303]
[1723408776414,0.12549,145.65,145.52,16.8354]
[1723408776415,4.8077,145.6,145.52,16.8354]
[1723408776622,4.8081,145.59,145.52,12.0254]
[1723408776790,0.12549,145.62,145.5,6.0238]
[1723408776992,33.72,145.61,145.5,6.0238]
[1723408777188,33.72,145.61,145.47,12.0292]
[1723408777189,20.50196,145.6,145.47,12.0292]
[1723408777408,0.12549,145.57,145.47,12.0292]
[1723408777602,0.12549,145.57,145.45,6.0238]
[1723408777603,33.72,145.55,145.45,6.0238]
[1723408777822,4.8104,145.52,145.45,6.0238]
[1723408778120,0.12549,145.57,145.45,6.0238]
[1723408778318,0.12549,145.57,145.43,28.0541]
[1723408778319,4.8107,145.51,145.43,32.8671]
[1723408778522,4.8104,145.52,145.43,32.8672]
[1723408778700,0.12549,145.53,145.43,32.8672]
[1723408778907,4.8113,145.49,145.41,4.8136]
[1723408779095,0.12549,145.51,145.4,10.8379]
[1723408779291,4.8118,145.48,145.4,4.814]
[1723408779627,25.06188,145.51,145.43,4.8132]
[1723408779815,24.93639,145.51,145.44,1.37088562]
[1723408779995,4.81,145.53,145.45,12.0311]
[1723408780204,0.12549,145.56,145.42,33.72]
[1723408780205,0.12549,145.52,145.42,33.72]
[1723408780516,0.12549,145.52,145.41,12.0345]
[1723408780517,4.8118,145.48,145.41,12.0345]
[1723408780924,4.8119,145.48,145.39,4.8145]
[1723408781100,4.812,145.47,145.37,16.021]
[1723408781305,0.12549,145.47,145.37,20.836]
[1723408781491,4.8122,145.47,145.39,4.8145]
[1723408781816,20.0,145.47,145.37,20.8359]
[1723408782034,0.12549,145.45,145.35,6.0238]
[1723408782205,20.12549,145.45,145.35,6.0238]
[1723408782397,4.8136,145.42,145.35,10.8397]
[1723408782593,4.8141,145.41,145.33,4.8163]
[1723408782802,53.72,145.43,145.32,12.042]
[1723408783009,4.8146,145.39,145.32,12.042]
[1723408783296,0.37647,145.42,145.32,12.042]
[1723408783297,20.0,145.41,145.32,12.042]
[1723408783603,20.0,145.43,145.32,12.042]
[1723408783806,33.84549,145.41,145.28,16.8636]
[1723408784011,4.8157,145.36,145.28,16.8636]
[1723408784219,33.72,145.38,145.28,12.0455]
[1723408784518,33.72,145.38,145.25,46.92565849]
[1723408784519,4.8164,145.34,145.25,10.8427]
[1723408784730,4.8158,145.36,145.25,6.0238]
[1723408785034,0.12549,145.37,145.27,12.92099004]
[1723408785197,20.12549,145.41,145.28,0.73499115]
[1723408785523,20.12549,145.41,145.27,12.0457]
[1723408785524,0.12549,145.38,145.29,1.37597638]
[1723408785695,0.12549,145.39,145.29,1.37597638]
[1723408785892,4.94039,145.39,145.29,1.37597638]
[1723408786113,24.8149,145.39,145.3,1.3759746]
[1723408786536,20.0,145.39,145.31,4.8172]
[1723408786846,13.26497974,145.44,145.32,1.37577538]
[1723408787013,13.26497974,145.44,145.33,6.19203525]
[1723408787335,33.72,145.45,145.34,45.0]
[1723408787539,4.814,145.41,145.34,45.0]
[1723408787723,4.8143,145.4,145.34,45.0]
[1723408788042,4.8152,145.38,145.28,4.818]
[1723408788248,4.8152,145.38,145.27,20.0]
[1723408788537,20.0,145.41,145.31,4.8172]
[1723408788752,4.815,145.38,145.3,4.8175]
[1723408789544,4.8161,145.35,145.26,5.6419137]
[1723408789758,0.12549,145.37,145.26,0.8231137]
[1723408789915,4.8156,145.36,145.27,16.8643]
[1723408790113,4.8156,145.36,145.28,4.8182]
[1723408790331,4.8161,145.35,145.27,12.046]
[1723408790522,20.0,145.37,145.26,0.8231137]
[1723408790523,0.12549,145.36,145.26,0.8231137]
[1723408790838,4.8162,145.35,145.27,4.8184]
[1723408791043,20.0,145.38,145.3,4.8175]
[1723408791337,0.37647,145.37,145.27,20.0]
[1723408791525,0.50196,145.37,145.27,20.0]
[1723408791844,0.12549,145.35,145.26,12.8699137]
[1723408792040,4.8169,145.32,145.26,0.8231137]
[1723408792242,0.12549,145.33,145.26,0.8231137]
[1723408792443,34.22196,145.33,145.26,0.8231137]
[1723408792848,4.8182,145.29,145.26,0.8231137]
[1723408793018,0.12549,145.31,145.26,0.8231137]
[1723408793217,0.50196,145.31,145.26,0.8231137]
[1723408793445,0.12549,145.29,145.26,0.8231137]
[1723408793649,4.8183,145.28,145.26,0.8231137]
[1723408794239,0.12549,145.27,145.26,0.8231137]
[1723408794417,4.8183,145.28,145.26,0.8231137]
[1723408794922,0.12549,145.32,145.26,0.8231137]
[1723408795124,4.8173,145.31,145.26,0.8231137]
[1723408795833,36.1083,145.4,145.26,0.8231137]
[1723408796149,4.8159,145.35,145.28,4.8182]
[1723408796317,4.8159,145.35,145.29,1.37624513]
[1723408796640,4.8163,145.34,145.27,12.0457]
[1723408797217,4.8166,145.33,145.27,12.0457]
[1723408797426,4.8169,145.32,145.26,0.8231137]
[1723408798140,4.8173,145.31,145.26,0.8231137]
[1723408798452,4.8172,145.32,145.26,0.8231137]
[1723408799019,0.12549,145.35,145.26,12.8703137]
[1723408799247,0.50196,145.35,145.27,45.53036957]
[1723408799532,0.12549,145.35,145.28,1.37617547]
[1723408799744,4.94169,145.35,145.28,1.37617547]
[1723408800040,4.8164,145.34,145.27,45.0]
[1723408800241,4.8167,145.33,145.27,45.0]
[1723408800451,20.0,145.38,145.27,4.8184]
[1723408800654,53.72,145.38,145.28,45.0]
[1723408800819,4.8172,145.31,145.26,0.8231137]
[1723408801019,65.7575,145.38,145.26,0.8231137]
[1723408801238,4.8163,145.34,145.27,4.8183]
[1723408801444,4.8159,145.35,145.26,0.8231137]
[1723408801665,33.72,145.38,145.28,4.8181]
[1723408801875,33.72,145.38,145.26,0.8231137]
[1723408802741,0.12549,145.37,145.26,0.8231137]
[1723408802981,12.0398,145.36,145.26,0.8231137]
[1723408803159,4.818,145.29,145.26,0.8231137]
[1723408803349,4.8179,145.29,145.26,0.8231137]
[1723408803549,4.8186,145.27,145.26,0.8231137]
[1723408804460,5.06958,145.27,145.26,0.8231137]
[1723408804667,25.32056,145.27,145.26,0.8231137]
[1723408804966,25.32056,145.27,145.16,6.2802]
[1723408804967,0.12549,145.26,145.16,6.2802]
[1723408805160,4.8206,145.21,145.16,6.2802]
[1723408805357,4.8202,145.22,145.17,1.02738197]
[1723408805583,4.8206,145.21,145.17,1.02738197]
[1723408805768,20.12549,145.23,145.16,6.2802]
[1723408806078,20.12549,145.23,145.12,6.2802]
[1723408806079,33.72,145.21,145.12,6.2802]
[1723408806245,20.25098,145.2,145.12,6.2802]
[1723408806447,0.12549,145.19,145.11,0.8231137]
[1723408806642,0.12549,145.19,145.11,5.6470137]
[1723408806846,20.0,145.2,145.12,1.37781236]
[1723408807057,20.12549,145.24,145.13,12.0581]
[1723408807275,4.8194,145.25,145.14,1.37744983]
[1723408807450,4.8194,145.25,145.13,33.72]
[1723408807451,12.0474,145.26,145.15,1.37727183]
[1723408807653,4.8202,145.22,145.15,6.19977183]
[1723408807875,4.8202,145.22,145.16,45.0]
[1723408808078,33.72,145.25,145.14,20.0]
[1723408808255,4.8206,145.21,145.14,4.8229]
[1723408808466,4.8209,145.2,145.13,26.20069056]
[1723408808650,4.8209,145.2,145.14,45.0]
[1723408808848,0.12549,145.21,145.11,0.8231137]
[1723408809186,4.8206,145.21,145.14,4.8228]
[1723408809468,4.8209,145.2,145.15,1.37746254]
[1723408809653,4.8218,145.18,145.11,0.8231137]
[1723408809851,4.94649,145.2,145.11,2.19905052]
[1723408810074,0.12549,145.2,145.11,14.25805052]
[1723408810279,20.50196,145.21,145.11,12.8821137]
[1723408810787,33.72,145.16,145.11,0.8231137]
[1723408810952,0.25098,145.15,145.11,0.8231137]
[1723408811158,4.8235,145.12,145.11,0.8231137]
[1723408811374,20.25098,145.15,145.11,0.8231137]
[1723408811375,20.0,145.15,145.11,0.8231137]
[1723408811577,0.12549,145.17,145.11,0.8231137]
[1723408811785,0.12549,145.16,145.11,0.8231137]
[1723408812087,0.25098,145.16,145.11,0.8231137]
[1723408812374,0.12549,145.14,145.11,0.8231137]
[1723408812583,45.7741,145.18,145.11,0.8231137]
[1723408812584,7.16869147,145.18,145.11,0.8231137]
[1723408812758,4.8209,145.21,145.14,4.8227]
[1723408813089,45.7698,145.23,145.11,0.8231137]
[1723408813380,4.8226,145.15,145.11,0.8231137]
[1723408813551,4.8229,145.14,145.11,0.8231137]
[1723408814173,4.8226,145.15,145.11,0.8231137]
[1723408814447,0.12549,145.16,145.11,0.8231137]
[1723408814651,0.12549,145.13,145.11,0.8231137]
[1723408814860,0.37647,145.13,145.11,0.8231137]
[1723408815080,0.12549,145.12,145.11,0.8231137]
[1723408815278,0.37647,145.12,145.11,0.8231137]
[1723408815490,0.12549,145.12,145.11,0.8231137]
[1723408815648,4.8231,145.14,145.11,0.8231137]
[1723408815860,0.12549,145.13,145.11,0.8231137]
[1723408816803,4.94809,145.15,145.11,0.8231137]
[1723408816967,12.0522,145.21,145.11,0.8231137]
[1723408817157,4.8226,145.15,145.11,0.8231137]
[1723408817588,45.7722,145.21,145.11,0.8231137]
[1723408817763,4.8213,145.19,145.12,4.8234]
[1723408817968,69.14105178,145.25,145.11,12.8827137]
[1723408818168,12.0511,145.22,145.11,17.7066137]
[1723408818393,12.0511,145.22,145.11,0.8231137]
[1723408818394,4.8229,145.14,145.11,0.8231137]
[1723408818570,4.8226,145.15,145.11,0.8231137]
[1723408818764,7.16441844,145.24,145.11,5.6469137]
[1723408818765,33.72,145.22,145.11,5.6469137]
[1723408818969,4.8212,145.2,145.13,4.8231]
[1723408819167,12.0499,145.23,145.13,4.8231]
[1723408819168,4.8206,145.21,145.13,18.4811]
[1723408819377,4.8219,145.17,145.13,6.4238]
[1723408819606,4.8216,145.18,145.13,6.4238]
[1723408819772,7.16441844,145.24,145.14,1.37685326]
[1723408819974,4.8209,145.2,145.14,4.8228]
[1723408820194,7.17782187,145.26,145.15,13.43396003]
[1723408820396,33.72,145.25,145.13,6.4238]
[1723408820694,33.72,145.22,145.13,6.4238]
[1723408820904,33.72,145.19,145.11,0.8231137]
[1723408821418,0.25098,145.18,145.11,0.8231137]
[1723408821696,20.25098,145.18,145.11,0.8231137]
[1723408822000,4.8219,145.17,145.11,0.8231137]
[1723408822202,20.25098,145.18,145.11,0.8231137]
[1723408822378,4.8226,145.15,145.11,0.8231137]
[1723408822573,4.94779,145.16,145.11,0.8231137]
[1723408822777,0.12549,145.16,145.11,0.8231137]
[1723408823174,4.94899,145.12,145.11,0.8231137]
[1723408823470,5.32546,145.12,145.11,0.8231137]
[1723408824299,0.12549,145.11,145.0,22.7776]
[1723408824477,4.8255,145.07,145.0,22.7776]
[1723408824790,33.72,145.09,145.0,6.4238]
[1723408824791,4.95139,145.05,145.0,6.4238]
[1723408824994,4.95109,145.06,145.0,6.4238]
[1723408825189,4.8262,145.04,145.0,6.4238]
[1723408825496,0.12549,145.06,145.0,6.4238]
[1723408825708,0.12549,145.05,145.0,6.4238]
[1723408825994,4.95169,145.04,145.0,6.4238]
[1723408826454,0.12549,145.05,145.0,6.4238]
[1723408826569,0.25098,145.05,145.0,6.4238]
[1723408827367,24.825,145.08,145.01,4.8272]
[1723408827568,33.72,145.07,145.0,6.4238]
[1723408827844,33.72,145.07,144.97,0.8231137]
[1723408827845,4.828,144.99,144.97,0.8231137]
[1723408828171,0.12549,145.05,144.97,0.8231137]
[1723408828370,0.25098,145.05,144.97,0.8231137]
[1723408828598,0.12549,145.04,144.97,0.8231137]
[1723408828769,20.25098,145.06,145.0,4.8275]
[1723408828770,0.25098,145.06,145.0,4.8275]
[1723408828971,33.72,145.11,145.01,6.20607142]
[1723408829190,19.33117974,145.14,145.02,1.37887727]
[1723408829191,56.5517045,145.14,145.02,1.37887727]
[1723408829389,46.98497974,145.14,145.02,61.5121]
[1723408829591,46.98497974,145.14,145.03,12.0656]
[1723408829803,4.826,145.05,144.99,12.0689]
[1723408830098,4.8255,145.07,144.99,12.0689]
[1723408830301,33.72,145.08,144.97,17.3352137]
[1723408830596,6.8955,145.03,144.97,17.3352137]
[1723408830770,6.8952,145.03,144.97,17.3352137]
[1723408830970,0.25098,145.04,144.97,0.8231137]
[1723408831192,0.37647,145.03,144.97,0.8231137]
[1723408831394,0.12549,145.03,144.97,0.8231137]
[1723408831608,0.12549,145.05,144.97,18.0680137]
[1723408831823,7.16552739,145.08,144.97,0.8231137]
[1723408832112,76.5819406,145.14,144.99,33.72]
[1723408832113,13.26497974,145.14,144.99,33.72]
[1723408832303,6.8909,145.12,145.02,16.5121]
[1723408832512,6.8909,145.12,145.05,6.894]
[1723408832697,33.72,145.15,145.04,6.0524]
[1723408832904,6.8918,145.1,145.04,6.0524]
[1723408833720,6.8912,145.12,145.05,6.8941]
[1723408833899,33.72,145.15,145.04,6.0524]
[1723408834086,24.38540092,145.16,145.02,16.5121]
[1723408834087,33.72,145.12,145.02,16.5121]
[1723408834296,33.72,145.09,145.02,16.5121]
[1723408834493,20.0,145.11,145.02,16.5121]
[1723408834691,0.12549,145.1,145.02,16.5121]
[1723408835018,6.8929,145.08,145.01,24.1349]
[1723408835387,0.12549,145.07,145.01,24.1349]
[1723408835616,0.12549,145.07,144.99,6.0524]
[1723408835811,0.12549,145.08,145.0,17.2402]
[1723408836020,20.0,145.11,145.02,17.2379]
[1723408836021,0.12549,145.1,145.02,17.2379]
[1723408836315,20.0,145.11,145.02,17.2379]
[1723408836316,6.8913,145.11,145.04,6.8946]
[1723408836617,7.16190092,145.16,145.06,6.8935]
[1723408836822,7.16190092,145.16,145.02,33.72]
[1723408836823,17.2237,145.15,145.02,33.72]
[1723408837119,33.72,145.1,144.99,6.0524]
[1723408837488,6.8922,145.1,145.03,6.895]
[1723408837691,6.8922,145.1,145.02,6.8954]
[1723408837906,0.12549,145.09,145.0,17.2403]
[1723408838133,0.12549,145.09,144.99,6.0524]
[1723408838410,6.8946,145.04,144.99,6.0524]
[1723408838616,6.8941,145.05,144.99,6.0524]
[1723408838792,6.8946,145.04,144.97,17.3352137]
[1723408838997,6.8956,145.02,144.97,17.3352137]
[1723408839206,0.37647,145.06,144.97,0.8231137]
[1723408839207,0.25098,145.03,144.97,0.8231137]
[1723408839417,7.02149,145.02,144.97,0.8231137]
[1723408839622,6.896,145.02,144.97,0.8231137]
[1723408839811,0.37647,145.03,144.97,0.8231137]
[1723408839812,0.12549,145.03,144.98,6.8975]
[1723408840000,20.0,145.06,144.98,6.8975]
[1723408840200,0.12549,145.05,144.99,8.27577517]
[1723408840407,0.12549,145.05,144.99,6.8969]
[1723408840604,62.2295,145.1,145.0,8.27519189]
[1723408840605,6.8933,145.07,145.0,8.27519189]
[1723408840820,33.72,145.05,144.97,0.8231137]
[1723408841003,0.12549,145.04,144.97,0.8231137]
[1723408841402,33.72,145.08,144.97,0.8231137]
[1723408841601,6.8946,145.04,144.98,6.8974]
[1723408841806,6.8941,145.06,144.99,6.8968]
[1723408842027,7.01869,145.07,144.98,17.2425]
[1723408842325,7.01869,145.07,144.99,6.8969]
[1723408842326,6.8937,145.06,144.99,6.8969]
[1723408842502,6.8946,145.04,144.98,17.2425]
[1723408842705,7.01909,145.07,144.99,1.37910303]
[1723408842936,40.0362,145.11,144.99,46.37910303]
[1723408843230,6.8932,145.07,145.0,6.8964]
[1723408843399,6.8932,145.07,145.01,1.37889128]
[1723408843739,6.8932,145.07,144.99,45.0]
[1723408843740,33.72,145.11,145.02,1.37889122]
[1723408844041,33.72,145.11,145.04,12.9469]
[1723408844042,6.8914,145.11,145.04,12.9469]
[1723408844217,6.8918,145.1,145.04,12.9469]
[1723408844416,6.8924,145.09,145.04,6.0524]
[1723408844647,3.4848042,145.17,145.06,6.8932]
[1723408844929,30.48437974,145.19,145.07,1.37831337]
[1723408845143,37.64359074,145.19,145.07,51.8927]
[1723408845316,6.8909,145.12,145.06,17.2331]
[1723408845519,6.8904,145.13,145.06,24.1267]
[1723408845709,17.2223,145.17,145.05,8.27238361]
[1723408845912,6.8922,145.1,145.04,6.0524]
[1723408846108,33.72,145.12,145.04,6.0524]
[1723408846533,6.8918,145.1,145.04,12.9469]
[1723408846736,0.12549,145.11,145.04,7.43059351]
[1723408846904,0.12549,145.11,145.04,6.0524]
[1723408847237,6.8941,145.05,145.04,6.0524]
[1723408847416,6.8932,145.08,145.01,16.5121]
[1723408847603,6.8918,145.1,145.01,16.5121]
[1723408847808,6.8918,145.1,145.03,6.895]
[1723408848011,6.8924,145.09,145.02,24.1342]
[1723408848431,0.12549,145.11,145.01,23.4081]
[1723408848638,6.8933,145.07,145.01,16.5121]
[1723408848822,20.50196,145.11,145.01,16.5121]
[1723408849330,20.37647,145.11,145.02,45.0]
[1723408849536,20.0,145.11,145.03,17.2368]
[1723408849742,6.8913,145.11,145.04,51.8945]
[1723408850310,6.8904,145.13,145.06,6.8936]
[1723408850506,6.8899,145.14,145.08,6.8927]
[1723408850766,79.17092283,145.19,145.09,1.37823869]
[1723408850767,6.8904,145.13,145.09,1.37823869]
[1723408850910,37.64349074,145.19,145.06,1.37827111]
[1723408851107,7.159211,145.19,145.07,17.232]
[1723408851331,6.8918,145.1,145.04,62.2365]
[1723408851541,50.945,145.14,145.02,0.25098]
[1723408851719,50.945,145.14,145.02,20.37647]
[1723408852119,6.8918,145.1,145.03,6.8946]
[1723408852320,6.8912,145.12,145.04,6.8945]
[1723408852543,0.25098,145.13,145.04,6.8945]
[1723408852834,33.84549,145.11,145.01,16.5121]
[1723408853035,6.8933,145.07,145.01,16.5121]
[1723408853239,0.12549,145.11,145.02,17.2386]
[1723408853447,0.25098,145.11,145.02,17.2386]
[1723408853738,6.8914,145.11,145.02,17.2386]
[1723408854043,20.0,145.13,145.03,1.37847902]
[1723408854228,7.159211,145.19,145.07,6.0946]
[1723408854422,52.8816208,145.2,145.1,6.8917]
[1723408854423,6.8889,145.17,145.1,6.8917]
[1723408854747,388.01065389,145.24,145.11,46.37781627]
[1723408854748,6.8878,145.19,145.11,46.37781627]
[1723408854912,7.16105966,145.21,145.11,46.37781627]
[1723408855223,21.73031837,145.25,145.12,17.2268]
[1723408855224,17.2128,145.25,145.12,17.2268]
[1723408855427,6.888,145.18,145.12,17.2268]
[1723408855827,6.888,145.18,145.11,45.0]
[1723408856124,7.16472004,145.25,145.11,62.2272]
[1723408856325,7.16472004,145.25,145.11,69.1181]
[1723408856326,6.8874,145.2,145.11,69.1181]
[1723408856516,7.16472004,145.25,145.1,16.5062]
[1723408856517,33.72,145.21,145.1,16.5062]
[1723408856723,6.889,145.16,145.1,16.5062]
[1723408856934,33.72,145.21,145.1,16.5062]
[1723408857123,33.72,145.21,145.1,33.7351]
[1723408857338,6.888,145.18,145.11,45.0]
[1723408857644,6.8887,145.17,145.1,33.7351]
[1723408857946,0.12549,145.16,145.1,16.5062]
[1723408858241,0.12549,145.21,145.12,17.2266]
[1723408858431,6.887,145.2,145.13,6.8901]
[1723408859046,0.12549,145.21,145.08,17.2308]
[1723408859219,0.12549,145.21,145.09,65.12549]
[1723408859420,0.12549,145.21,145.1,6.8913]
[1723408859421,6.8884,145.17,145.1,6.8913]
[1723408859740,0.12549,145.15,145.07,6.0946]
[1723408860135,6.8899,145.14,145.07,6.0946]
[1723408860318,0.12549,145.15,145.07,6.0946]
[1723408860524,0.12549,145.12,145.05,16.5062]
[1723408860823,0.12549,145.12,145.03,6.0946]
[1723408860824,6.8933,145.07,145.03,6.0946]
[1723408861038,40.6122,145.1,145.03,6.0946]
[1723408861418,6.8922,145.1,145.03,12.9895]
[1723408861620,33.72,145.1,145.03,6.0946]
[1723408861820,6.8928,145.08,145.03,6.0946]
[1723408862040,7.26867,145.09,145.03,6.0946]
[1723408862345,7.14318,145.09,145.03,6.0946]
[1723408862530,6.8932,145.07,145.03,6.0946]
[1723408862728,0.12549,145.06,145.0,16.5062]
[1723408862930,7.39606,145.06,144.99,6.0946]
[1723408863247,7.39606,145.06,144.97,0.8231137]
[1723408863248,6.896,145.01,144.97,0.8231137]
[1723408863428,0.37647,145.06,144.97,0.8231137]
[1723408863429,7.02009,145.05,144.97,0.8231137]
[1723408863737,0.37647,145.06,144.97,0.8231137]
[1723408863738,0.12549,145.03,144.97,0.8231137]
[1723408863929,0.25098,145.04,144.97,0.8231137]
[1723408864150,0.12549,145.04,144.97,0.8231137]
[1723408864342,0.12549,145.06,144.98,17.243]
[1723408864542,0.12549,145.1,145.02,6.8955]
[1723408864730,0.12549,145.08,144.99,1.37878813]
[1723408865124,6.8923,145.09,145.02,6.8955]
[1723408865944,33.72,145.11,145.01,17.2398]
[1723408866126,33.72,145.08,144.98,6.8973]
[1723408866335,6.8935,145.07,145.0,6.8965]
[1723408866761,0.12549,145.08,145.0,17.2412]
[1723408866940,7.17580982,145.13,145.03,17.2373]